[Event "*** Titled Tuesday Blitz"]
[Site "Chess.com"]
[Date "2020.03.03"]
[Round "3"]
[White "AminMolaei"]
[Black "aa175"]
[Result "1-0"]
[WhiteElo "2518"]
[BlackElo "2249"]
[TimeControl "180+1"]
[EndTime "13:28:57 PST"]
[Termination "AminMolaei won on time"]

1. d4 {[%clk 0:03:00.9]} 1... Nf6 {[%clk 0:02:57.6]} 2. c4 {[%clk 0:03:01.1]}
2... g6 {[%clk 0:02:57.5]} 3. Nc3 {[%clk 0:02:52.5]} 3... d5 {[%clk 0:02:55.5]}
4. Bg5 {[%clk 0:02:51.9]} 4... Ne4 {[%clk 0:02:47.6]} 5. Bh4 {[%clk 0:02:51.9]}
5... Nxc3 {[%clk 0:02:44.5]} 6. bxc3 {[%clk 0:02:52.8]} 6... Bg7 {[%clk
0:02:43.3]} 7. e3 {[%clk 0:02:52.6]} 7... O-O {[%clk 0:02:41.1]} 8. Nf3 {[%clk
0:02:49.9]} 8... dxc4 {[%clk 0:02:40.8]} 9. Bxc4 {[%clk 0:02:50.8]} 9... c5
{[%clk 0:02:41.3]} 10. O-O {[%clk 0:02:50.3]} 10... cxd4 {[%clk 0:02:41.5]} 11.
cxd4 {[%clk 0:02:51.2]} 11... Nc6 {[%clk 0:02:39.7]} 12. Rb1 {[%clk 0:02:49.5]}
12... Qc7 {[%clk 0:02:23.5]} 13. Qa4 {[%clk 0:02:48.3]} 13... Bg4 {[%clk
0:02:20.8]} 14. Rfc1 {[%clk 0:02:47.9]} 14... Bxf3 {[%clk 0:02:18.8]} 15. gxf3
{[%clk 0:02:48.8]} 15... Rac8 {[%clk 0:02:10.1]} 16. Bd5 {[%clk 0:02:47.6]}
16... Qd7 {[%clk 0:01:57.4]} 17. Bxc6 {[%clk 0:02:41.7]} 17... bxc6 {[%clk
0:01:58.3]} 18. Rc5 {[%clk 0:02:39.2]} 18... e5 {[%clk 0:01:52.3]} 19. dxe5
{[%clk 0:02:37.8]} 19... Qf5 {[%clk 0:01:43.6]} 20. Qe4 {[%clk 0:02:35.5]} 20...
Qe6 {[%clk 0:01:18.9]} 21. a4 {[%clk 0:02:32.1]} 21... Rfe8 {[%clk 0:01:16.5]}
22. Bg3 {[%clk 0:02:31.9]} 22... h5 {[%clk 0:01:12.2]} 23. Rbc1 {[%clk 0:02:31]}
23... g5 {[%clk 0:00:43.3]} 24. h4 {[%clk 0:02:28]} 24... gxh4 {[%clk
0:00:40.2]} 25. Qxh4 {[%clk 0:02:28.3]} 25... Qf5 {[%clk 0:00:36.8]} 26. e4
{[%clk 0:02:25.8]} 26... Qxf3 {[%clk 0:00:36.2]} 27. R1c3 {[%clk 0:02:15.7]}
27... Qd1+ {[%clk 0:00:32.4]} 28. Kg2 {[%clk 0:02:14.9]} 28... Re6 {[%clk
0:00:31.7]} 29. Rf3 {[%clk 0:02:04.6]} 29... Qd4 {[%clk 0:00:10.6]} 30. Qxh5
{[%clk 0:02:01]} 30... Rg6 {[%clk 0:00:06.1]} 31. e6 {[%clk 0:01:57.2]} 31...
Qxe4 {[%clk 0:00:02.2]} 32. exf7+ {[%clk 0:01:56.3]} 32... Kf8 {[%clk
0:00:02.3]} 33. Rf5 {[%clk 0:01:48.8]} 33... c5 {[%clk 0:00:01.5]} 34. Qxg6
{[%clk 0:01:48.4]} 1-0

[Event "*** Titled Tuesday Blitz"]
[Site "Chess.com"]
[Date "2020.03.03"]
[Round "3"]
[White "RoelandPruijssers"]
[Black "denizozen"]
[Result "0-1"]
[WhiteElo "2678"]
[BlackElo "2845"]
[TimeControl "180+1"]
[EndTime "13:28:58 PST"]
[Termination "denizozen won by resignation"]

1. e4 {[%clk 0:03:00.9]} 1... c5 {[%clk 0:02:58.6]} 2. Nf3 {[%clk 0:02:54]} 2...
d6 {[%clk 0:02:58.8]} 3. d4 {[%clk 0:02:53.4]} 3... cxd4 {[%clk 0:02:59.7]} 4.
Nxd4 {[%clk 0:02:54]} 4... Nf6 {[%clk 0:03:00.3]} 5. Nc3 {[%clk 0:02:54.3]} 5...
a6 {[%clk 0:03:00.9]} 6. Be3 {[%clk 0:02:54.8]} 6... e5 {[%clk 0:03:01]} 7. Nb3
{[%clk 0:02:54.6]} 7... Be6 {[%clk 0:03:01.7]} 8. Qd2 {[%clk 0:02:55.2]} 8...
Nbd7 {[%clk 0:03:01.6]} 9. O-O-O {[%clk 0:02:55.9]} 9... b5 {[%clk 0:03:02.3]}
10. f4 {[%clk 0:02:56.2]} 10... Rc8 {[%clk 0:02:51.3]} 11. Kb1 {[%clk
0:02:50.2]} 11... Be7 {[%clk 0:02:50.2]} 12. f5 {[%clk 0:02:44.3]} 12... Bc4
{[%clk 0:02:48.9]} 13. a3 {[%clk 0:02:43.7]} 13... O-O {[%clk 0:02:47.2]} 14. g4
{[%clk 0:02:43.2]} 14... Nxg4 {[%clk 0:02:26.2]} 15. Rg1 {[%clk 0:02:41.8]}
15... Nxe3 {[%clk 0:02:17.7]} 16. Qxe3 {[%clk 0:02:39.4]} 16... Kh8 {[%clk
0:02:10.7]} 17. Bxc4 {[%clk 0:02:38.6]} 17... bxc4 {[%clk 0:02:09.2]} 18. Nd2
{[%clk 0:02:38.9]} 18... Nf6 {[%clk 0:01:56.8]} 19. Nf3 {[%clk 0:02:38.7]} 19...
Rb8 {[%clk 0:01:47]} 20. Nxe5 {[%clk 0:02:33.7]} 20... Qc7 {[%clk 0:01:26.2]}
21. Rxg7 {[%clk 0:02:26.4]} 21... dxe5 {[%clk 0:00:54.8]} 22. Qh6 {[%clk
0:02:20.7]} 22... Qb6 {[%clk 0:00:30.3]} 23. Na4 {[%clk 0:02:17.3]} 23... Qb5
{[%clk 0:00:30.6]} 24. Rd6 {[%clk 0:01:53.7]} 24... Qxa4 {[%clk 0:00:16.6]} 25.
Rxf6 {[%clk 0:01:51.1]} 25... Rxb2+ {[%clk 0:00:16.6]} 26. Kxb2 {[%clk
0:01:47.2]} 26... Qxa3+ {[%clk 0:00:16.9]} 27. Kb1 {[%clk 0:01:47.6]} 27... Rb8+
{[%clk 0:00:14]} 28. Rb6 {[%clk 0:01:48]} 28... Rxb6+ {[%clk 0:00:14.5]} 29.
Qxb6 {[%clk 0:01:48.6]} 29... Kxg7 {[%clk 0:00:15.4]} 30. Qg1+ {[%clk
0:01:45.4]} 30... Kf8 {[%clk 0:00:14.4]} 31. Qa7 {[%clk 0:01:45.7]} 31... Qb4+
{[%clk 0:00:14.1]} 32. Kc1 {[%clk 0:01:45.9]} 32... Qe1+ {[%clk 0:00:14.1]} 33.
Kb2 {[%clk 0:01:45.6]} 33... Qxe4 {[%clk 0:00:12.6]} 34. Qxa6 {[%clk 0:01:39.4]}
34... Qxf5 {[%clk 0:00:08.7]} 35. Qxc4 {[%clk 0:01:39.4]} 35... e4 {[%clk
0:00:08.2]} 36. Qc6 {[%clk 0:01:37.2]} 36... Qf6+ {[%clk 0:00:08]} 37. Kb3
{[%clk 0:01:37.9]} 37... Qxc6 {[%clk 0:00:07.9]} 0-1

[Event "*** Titled Tuesday Blitz"]
[Site "Chess.com"]
[Date "2020.03.03"]
[Round "3"]
[White "GMWSO"]
[Black "Keaton87"]
[Result "1-0"]
[WhiteElo "3109"]
[BlackElo "2642"]
[TimeControl "180+1"]
[EndTime "13:29:02 PST"]
[Termination "GMWSO won by resignation"]

1. b3 {[%clk 0:03:00.9]} 1... d5 {[%clk 0:02:59.3]} 2. Nf3 {[%clk 0:03:00.6]}
2... Bf5 {[%clk 0:02:59.1]} 3. Bb2 {[%clk 0:03:00.5]} 3... e6 {[%clk 0:02:58.5]}
4. g3 {[%clk 0:02:58]} 4... Nf6 {[%clk 0:02:58.6]} 5. Nh4 {[%clk 0:02:57.9]}
5... Bg4 {[%clk 0:02:57.4]} 6. h3 {[%clk 0:02:54]} 6... Bh5 {[%clk 0:02:57.3]}
7. Bg2 {[%clk 0:02:51.2]} 7... Nbd7 {[%clk 0:02:43.6]} 8. c4 {[%clk 0:02:40]}
8... c6 {[%clk 0:02:43.1]} 9. d3 {[%clk 0:02:28.6]} 9... Bd6 {[%clk 0:02:41.9]}
10. Nd2 {[%clk 0:02:27.9]} 10... Qe7 {[%clk 0:02:34.8]} 11. a3 {[%clk
0:02:27.5]} 11... a5 {[%clk 0:02:33.1]} 12. Qc2 {[%clk 0:02:19.3]} 12... Be5
{[%clk 0:02:23.9]} 13. d4 {[%clk 0:02:08]} 13... Bc7 {[%clk 0:02:20]} 14. e3
{[%clk 0:02:03.5]} 14... O-O {[%clk 0:02:15.6]} 15. g4 {[%clk 0:01:55.4]} 15...
Bg6 {[%clk 0:02:14.8]} 16. Nxg6 {[%clk 0:01:55.8]} 16... hxg6 {[%clk 0:02:12]}
17. g5 {[%clk 0:01:55.8]} 17... Ne8 {[%clk 0:02:04.5]} 18. h4 {[%clk 0:01:54.7]}
18... Nd6 {[%clk 0:01:36.8]} 19. O-O-O {[%clk 0:01:54.3]} 19... a4 {[%clk
0:01:23.7]} 20. b4 {[%clk 0:01:54.2]} 20... Rfc8 {[%clk 0:01:08.3]} 21. f4
{[%clk 0:01:38.3]} 21... b6 {[%clk 0:01:05]} 22. h5 {[%clk 0:01:35.1]} 22... Nf5
{[%clk 0:01:05.1]} 23. Rh3 {[%clk 0:01:24.4]} 23... c5 {[%clk 0:01:04]} 24. dxc5
{[%clk 0:01:18.7]} 24... bxc5 {[%clk 0:01:02.9]} 25. hxg6 {[%clk 0:01:13.6]}
25... fxg6 {[%clk 0:01:02.6]} 26. cxd5 {[%clk 0:01:11.8]} 26... cxb4 {[%clk
0:00:51.9]} 27. Kb1 {[%clk 0:01:07.2]} 27... Rab8 {[%clk 0:00:40.4]} 28. dxe6
{[%clk 0:01:01.4]} 28... Bxf4 {[%clk 0:00:24.5]} 29. exd7 {[%clk 0:00:57]} 29...
Nxe3 {[%clk 0:00:13.5]} 30. dxc8=Q+ {[%clk 0:00:55.5]} 1-0

[Event "*** Titled Tuesday Blitz"]
[Site "Chess.com"]
[Date "2020.03.03"]
[Round "3"]
[White "secretsuperstar7"]
[Black "ural58"]
[Result "0-1"]
[WhiteElo "2184"]
[BlackElo "2408"]
[TimeControl "180+1"]
[EndTime "13:29:02 PST"]
[Termination "ural58 won on time"]

1. d4 {[%clk 0:02:13.9]} 1... d5 {[%clk 0:02:59.6]} 2. Nf3 {[%clk 0:02:08.6]}
2... Nc6 {[%clk 0:02:59.2]} 3. g3 {[%clk 0:01:39.9]} 3... Bg4 {[%clk 0:02:54.4]}
4. Bg2 {[%clk 0:01:38.3]} 4... Qd7 {[%clk 0:02:54.3]} 5. O-O {[%clk 0:01:26.4]}
5... O-O-O {[%clk 0:02:52.7]} 6. c4 {[%clk 0:01:22.7]} 6... dxc4 {[%clk
0:02:45.1]} 7. e3 {[%clk 0:01:00.9]} 7... e5 {[%clk 0:02:43.4]} 8. d5 {[%clk
0:00:36.3]} 8... Qxd5 {[%clk 0:02:38.7]} 9. Qxd5 {[%clk 0:00:34]} 9... Rxd5
{[%clk 0:02:38.4]} 10. Ng5 {[%clk 0:00:29.7]} 10... Rd7 {[%clk 0:02:34.9]} 11.
f3 {[%clk 0:00:25.7]} 11... Bh5 {[%clk 0:02:33]} 12. Bh3 {[%clk 0:00:23.1]}
12... h6 {[%clk 0:02:32.2]} 13. Bxd7+ {[%clk 0:00:21.7]} 13... Kxd7 {[%clk
0:02:32.3]} 14. Ne4 {[%clk 0:00:21.3]} 14... f5 {[%clk 0:02:31.1]} 15. Nec3
{[%clk 0:00:19.7]} 15... Nf6 {[%clk 0:02:25.7]} 16. Nd2 {[%clk 0:00:18.7]} 16...
Na5 {[%clk 0:02:24.6]} 17. b4 {[%clk 0:00:17.3]} 17... cxb3 {[%clk 0:02:23.4]}
18. axb3 {[%clk 0:00:16.6]} 18... Bb4 {[%clk 0:02:18.6]} 19. Bb2 {[%clk
0:00:16.3]} 19... Rd8 {[%clk 0:02:07]} 20. Nc4 {[%clk 0:00:16.1]} 20... Nxc4
{[%clk 0:02:06.2]} 21. bxc4 {[%clk 0:00:16.2]} 21... a6 {[%clk 0:02:06.5]} 22.
Rfd1+ {[%clk 0:00:15.1]} 22... Kc8 {[%clk 0:02:06.6]} 23. Nd5 {[%clk 0:00:15.1]}
23... Bxf3 {[%clk 0:02:04.1]} 24. Bxe5 {[%clk 0:00:13.4]} 24... Nxd5 {[%clk
0:01:56.6]} 25. cxd5 {[%clk 0:00:11.1]} 25... Bxd1 {[%clk 0:01:56.5]} 26. Rxd1
{[%clk 0:00:10.5]} 26... g6 {[%clk 0:01:55.4]} 27. Rc1 {[%clk 0:00:10.3]} 27...
Bd6 {[%clk 0:01:55.6]} 28. Bf6 {[%clk 0:00:09.7]} 28... Re8 {[%clk 0:01:55.8]}
29. Kf2 {[%clk 0:00:08.4]} 29... b5 {[%clk 0:01:55.6]} 30. h4 {[%clk 0:00:07.7]}
30... a5 {[%clk 0:01:54.3]} 31. Rh1 {[%clk 0:00:05.9]} 31... h5 {[%clk
0:01:53.5]} 32. Rb1 {[%clk 0:00:04.5]} 32... b4 {[%clk 0:01:52.9]} 33. Ra1
{[%clk 0:00:04]} 33... Kd7 {[%clk 0:01:50.9]} 34. Rxa5 {[%clk 0:00:03.5]} 34...
Rb8 {[%clk 0:01:51.8]} 35. Bb2 {[%clk 0:00:02.7]} 35... b3 {[%clk 0:01:49.8]}
36. Kf3 {[%clk 0:00:02.6]} 36... Rb4 {[%clk 0:01:49.1]} 37. Ra8 {[%clk
0:00:01.8]} 37... Rc4 {[%clk 0:01:48.7]} 38. Rg8 {[%clk 0:00:01.2]} 38... Rc2
{[%clk 0:01:48.7]} 0-1

[Event "*** Titled Tuesday Blitz"]
[Site "Chess.com"]
[Date "2020.03.03"]
[Round "3"]
[White "kingofthenil"]
[Black "pouya21"]
[Result "0-1"]
[WhiteElo "2570"]
[BlackElo "2799"]
[TimeControl "180+1"]
[EndTime "13:29:13 PST"]
[Termination "pouya21 won on time"]

1. e4 {[%clk 0:02:09.9]} 1... c5 {[%clk 0:02:56.9]} 2. d3 {[%clk 0:02:09.3]}
2... g6 {[%clk 0:02:54.2]} 3. g3 {[%clk 0:02:09.6]} 3... Bg7 {[%clk 0:02:54.5]}
4. Bg2 {[%clk 0:02:10.5]} 4... d6 {[%clk 0:02:55]} 5. f4 {[%clk 0:02:11.4]} 5...
Nc6 {[%clk 0:02:54.9]} 6. Nf3 {[%clk 0:02:12.3]} 6... Bg4 {[%clk 0:02:54.8]} 7.
O-O {[%clk 0:02:06.8]} 7... Nf6 {[%clk 0:02:50.7]} 8. h3 {[%clk 0:01:51.6]} 8...
Bxf3 {[%clk 0:02:50.3]} 9. Qxf3 {[%clk 0:01:52.5]} 9... O-O {[%clk 0:02:48.6]}
10. c3 {[%clk 0:01:51.9]} 10... Nd7 {[%clk 0:02:45]} 11. Be3 {[%clk 0:01:51]}
11... e6 {[%clk 0:02:43.9]} 12. Nd2 {[%clk 0:01:50.1]} 12... Rc8 {[%clk
0:02:41.3]} 13. a4 {[%clk 0:01:29.8]} 13... f5 {[%clk 0:02:41]} 14. Bf2 {[%clk
0:01:28.9]} 14... Qe8 {[%clk 0:02:35.7]} 15. Nc4 {[%clk 0:01:28.2]} 15... Qe7
{[%clk 0:02:34]} 16. Rfe1 {[%clk 0:01:28]} 16... fxe4 {[%clk 0:02:26.6]} 17.
dxe4 {[%clk 0:01:21]} 17... Nde5 {[%clk 0:02:19.5]} 18. Qe2 {[%clk 0:01:15]}
18... Nxc4 {[%clk 0:02:19.4]} 19. Qxc4 {[%clk 0:01:15.9]} 19... Kh8 {[%clk
0:02:18]} 20. Rad1 {[%clk 0:01:15.1]} 20... e5 {[%clk 0:02:16.5]} 21. f5 {[%clk
0:01:11.2]} 21... gxf5 {[%clk 0:02:15.9]} 22. exf5 {[%clk 0:01:12.1]} 22... Rxf5
{[%clk 0:02:15.7]} 23. Qd3 {[%clk 0:01:06.4]} 23... Rcf8 {[%clk 0:02:13.7]} 24.
Be3 {[%clk 0:01:06.7]} 24... R8f6 {[%clk 0:01:37.8]} 25. g4 {[%clk 0:01:03.8]}
25... Rf3 {[%clk 0:01:38.1]} 26. Bxf3 {[%clk 0:01:02.9]} 26... Rxf3 {[%clk
0:01:38.1]} 27. Kg2 {[%clk 0:01:03.3]} 27... e4 {[%clk 0:01:34.8]} 28. Qxd6
{[%clk 0:01:01.2]} 28... Qh4 {[%clk 0:01:34.2]} 29. Rh1 {[%clk 0:00:08.2]} 29...
Be5 {[%clk 0:01:27]} 30. Qd8+ {[%clk 0:00:01.2]} 30... Nxd8 {[%clk 0:01:25.6]}
31. Rxd8+ {[%clk 0:00:02.1]} 31... Qxd8 {[%clk 0:01:24.7]} 0-1

[Event "*** Titled Tuesday Blitz"]
[Site "Chess.com"]
[Date "2020.03.03"]
[Round "3"]
[White "IMTominho"]
[Black "Kobalia"]
[Result "1-0"]
[WhiteElo "2820"]
[BlackElo "2631"]
[TimeControl "180+1"]
[EndTime "13:29:17 PST"]
[Termination "IMTominho won on time"]

1. d4 {[%clk 0:03:00.9]} 1... d5 {[%clk 0:02:58.7]} 2. c4 {[%clk 0:02:59.8]}
2... c6 {[%clk 0:02:58.7]} 3. Nf3 {[%clk 0:02:58.8]} 3... Nf6 {[%clk 0:02:57.6]}
4. Nbd2 {[%clk 0:02:57.5]} 4... Bf5 {[%clk 0:02:55.6]} 5. Nh4 {[%clk 0:02:54.3]}
5... Be4 {[%clk 0:02:55.5]} 6. e3 {[%clk 0:02:49.8]} 6... e6 {[%clk 0:02:53.4]}
7. Be2 {[%clk 0:02:48.4]} 7... h6 {[%clk 0:02:49.9]} 8. Nxe4 {[%clk 0:02:46.7]}
8... dxe4 {[%clk 0:02:48.7]} 9. g3 {[%clk 0:02:46.6]} 9... g5 {[%clk 0:02:47.7]}
10. Ng2 {[%clk 0:02:45.7]} 10... c5 {[%clk 0:02:46.1]} 11. h4 {[%clk 0:02:42.7]}
11... Rg8 {[%clk 0:02:43.2]} 12. hxg5 {[%clk 0:02:33.1]} 12... hxg5 {[%clk
0:02:42.4]} 13. Qb3 {[%clk 0:02:32.6]} 13... Qc7 {[%clk 0:02:31.4]} 14. Bd2
{[%clk 0:02:29.6]} 14... Nc6 {[%clk 0:02:30.1]} 15. Bc3 {[%clk 0:02:27.2]} 15...
Be7 {[%clk 0:02:17.7]} 16. O-O-O {[%clk 0:02:19.4]} 16... O-O-O {[%clk 0:02:15]}
17. Kb1 {[%clk 0:02:10.6]} 17... Kb8 {[%clk 0:01:59.8]} 18. Ne1 {[%clk 0:02:05]}
18... Rh8 {[%clk 0:01:56]} 19. Nc2 {[%clk 0:01:58.4]} 19... Rxh1 {[%clk
0:01:50.9]} 20. Rxh1 {[%clk 0:01:59.3]} 20... Nd7 {[%clk 0:01:23.5]} 21. Rh7
{[%clk 0:01:57.4]} 21... Rf8 {[%clk 0:01:15.2]} 22. a3 {[%clk 0:01:56.8]} 22...
Bf6 {[%clk 0:01:05]} 23. Bh5 {[%clk 0:01:47.1]} 23... Nd8 {[%clk 0:00:43.4]} 24.
a4 {[%clk 0:01:35.6]} 24... Rh8 {[%clk 0:00:42.3]} 25. Rxh8 {[%clk 0:01:33.8]}
25... Bxh8 {[%clk 0:00:41.8]} 26. a5 {[%clk 0:01:34.2]} 26... a6 {[%clk
0:00:40.4]} 27. Be2 {[%clk 0:01:29.8]} 27... f5 {[%clk 0:00:39.6]} 28. d5 {[%clk
0:01:19.6]} 28... Bxc3 {[%clk 0:00:36.2]} 29. Qxc3 {[%clk 0:01:20.5]} 29... Ne5
{[%clk 0:00:35.4]} 30. b4 {[%clk 0:01:13.3]} 30... cxb4 {[%clk 0:00:31.3]} 31.
Nxb4 {[%clk 0:01:14.2]} 31... Ndf7 {[%clk 0:00:27.9]} 32. dxe6 {[%clk 0:01:13]}
1-0

[Event "*** Titled Tuesday Blitz"]
[Site "Chess.com"]
[Date "2020.03.03"]
[Round "3"]
[White "Misi_95"]
[Black "adricalderon8"]
[Result "1-0"]
[WhiteElo "2653"]
[BlackElo "2426"]
[TimeControl "180+1"]
[EndTime "13:29:20 PST"]
[Termination "Misi_95 won by resignation"]

1. e4 {[%clk 0:03:00.9]} 1... c5 {[%clk 0:02:59.8]} 2. Nf3 {[%clk 0:02:57.9]}
2... Nc6 {[%clk 0:03:00.3]} 3. Bb5 {[%clk 0:02:56.2]} 3... g6 {[%clk 0:03:00.3]}
4. O-O {[%clk 0:02:56.2]} 4... Bg7 {[%clk 0:03:00.4]} 5. Re1 {[%clk 0:02:56.4]}
5... e5 {[%clk 0:02:58.1]} 6. Bxc6 {[%clk 0:02:55.2]} 6... dxc6 {[%clk 0:02:59]}
7. c3 {[%clk 0:02:56.1]} 7... Qe7 {[%clk 0:02:55.2]} 8. d4 {[%clk 0:02:54]} 8...
exd4 {[%clk 0:02:54]} 9. cxd4 {[%clk 0:02:54.9]} 9... cxd4 {[%clk 0:02:54.6]}
10. Nxd4 {[%clk 0:02:54.5]} 10... Nf6 {[%clk 0:02:52.6]} 11. Nc3 {[%clk
0:02:51.9]} 11... O-O {[%clk 0:02:51.9]} 12. e5 {[%clk 0:02:51.4]} 12... Ng4
{[%clk 0:02:25.5]} 13. e6 {[%clk 0:02:48.8]} 13... Qh4 {[%clk 0:02:15.9]} 14.
exf7+ {[%clk 0:02:12.8]} 14... Kh8 {[%clk 0:02:14.8]} 15. Nf3 {[%clk 0:02:09.6]}
15... Qxf2+ {[%clk 0:02:14.5]} 16. Kh1 {[%clk 0:02:10.2]} 16... Bf5 {[%clk
0:02:01.1]} 17. h3 {[%clk 0:01:59.2]} 17... Rad8 {[%clk 0:02:00.2]} 18. Qxd8
{[%clk 0:01:50.6]} 18... Rxd8 {[%clk 0:01:18]} 19. Re8+ {[%clk 0:01:40.9]} 19...
Bf8 {[%clk 0:01:18.1]} 20. Bg5 {[%clk 0:01:29.8]} 20... Rc8 {[%clk 0:00:49.2]}
21. hxg4 {[%clk 0:01:26.9]} 21... Kg7 {[%clk 0:00:44.9]} 22. gxf5 {[%clk
0:01:25.4]} 22... Rc7 {[%clk 0:00:40.2]} 23. f6+ {[%clk 0:00:51.8]} 23... Kxf7
{[%clk 0:00:39.2]} 24. Re2 {[%clk 0:00:52.7]} 24... Qg3 {[%clk 0:00:34.7]} 25.
Ne4 {[%clk 0:00:49.9]} 25... Qg4 {[%clk 0:00:19.4]} 26. Ne5+ {[%clk 0:00:49.3]}
1-0

[Event "*** Titled Tuesday Blitz"]
[Site "Chess.com"]
[Date "2020.03.03"]
[Round "3"]
[White "Region_07"]
[Black "Shahinyan_ChessMood"]
[Result "1/2-1/2"]
[WhiteElo "2405"]
[BlackElo "2624"]
[TimeControl "180+1"]
[EndTime "13:29:20 PST"]
[Termination "Game drawn by repetition"]

1. d4 {[%clk 0:03:00.4]} 1... Nf6 {[%clk 0:02:58.4]} 2. Bg5 {[%clk 0:03:00.4]}
2... d5 {[%clk 0:02:57.2]} 3. Bxf6 {[%clk 0:02:59]} 3... exf6 {[%clk 0:02:58.1]}
4. e3 {[%clk 0:02:58.7]} 4... c6 {[%clk 0:02:58.4]} 5. c4 {[%clk 0:02:58.7]}
5... dxc4 {[%clk 0:02:58.2]} 6. Bxc4 {[%clk 0:02:58.2]} 6... Bd6 {[%clk
0:02:58.7]} 7. Nc3 {[%clk 0:02:58.5]} 7... Nd7 {[%clk 0:02:58.7]} 8. Nf3 {[%clk
0:02:58.5]} 8... f5 {[%clk 0:02:59]} 9. O-O {[%clk 0:02:57.9]} 9... Nf6 {[%clk
0:02:58.6]} 10. Qc2 {[%clk 0:02:49.8]} 10... O-O {[%clk 0:02:58.2]} 11. Rad1
{[%clk 0:02:31.7]} 11... Qe7 {[%clk 0:02:58.4]} 12. Rfe1 {[%clk 0:02:15.8]}
12... Ne4 {[%clk 0:02:56.1]} 13. Bd3 {[%clk 0:02:08]} 13... Re8 {[%clk
0:02:49.2]} 14. h3 {[%clk 0:01:38.4]} 14... g6 {[%clk 0:02:33.8]} 15. Nd2 {[%clk
0:01:36.5]} 15... Nxd2 {[%clk 0:01:58.6]} 16. Qxd2 {[%clk 0:01:37.4]} 16... Qh4
{[%clk 0:01:58.9]} 17. e4 {[%clk 0:01:21.6]} 17... Bf4 {[%clk 0:01:47.6]} 18.
Qc2 {[%clk 0:01:09.4]} 18... fxe4 {[%clk 0:01:32.8]} 19. Nxe4 {[%clk 0:01:06.8]}
19... Bxh3 {[%clk 0:00:58.2]} 20. gxh3 {[%clk 0:01:04.6]} 20... Qxh3 {[%clk
0:00:59.1]} 21. Nf6+ {[%clk 0:00:59.5]} 21... Kg7 {[%clk 0:00:30]} 22. Rxe8
{[%clk 0:00:51.1]} 22... Bh2+ {[%clk 0:00:22]} 23. Kh1 {[%clk 0:00:50.1]} 23...
Bg3+ {[%clk 0:00:21.8]} 24. Kg1 {[%clk 0:00:50.2]} 24... Bh2+ {[%clk 0:00:13.9]}
25. Kh1 {[%clk 0:00:50.3]} 25... Be5+ {[%clk 0:00:10]} 26. Kg1 {[%clk
0:00:49.1]} 26... Bh2+ {[%clk 0:00:10.6]} 1/2-1/2

[Event "*** Titled Tuesday Blitz"]
[Site "Chess.com"]
[Date "2020.03.03"]
[Round "3"]
[White "StoreySniper"]
[Black "Marcus_Harvey"]
[Result "1-0"]
[WhiteElo "2449"]
[BlackElo "2745"]
[TimeControl "180+1"]
[EndTime "13:29:28 PST"]
[Termination "StoreySniper won on time"]

1. e4 {[%clk 0:02:58.8]} 1... e6 {[%clk 0:03:00.2]} 2. Nf3 {[%clk 0:02:58.9]}
2... d5 {[%clk 0:02:59.9]} 3. Nc3 {[%clk 0:02:56.2]} 3... Nf6 {[%clk 0:02:59.4]}
4. e5 {[%clk 0:02:55.6]} 4... Ne4 {[%clk 0:02:59.6]} 5. d4 {[%clk 0:02:54.7]}
5... Bb4 {[%clk 0:02:54.4]} 6. Bd2 {[%clk 0:02:54.7]} 6... Nxd2 {[%clk
0:02:52.6]} 7. Qxd2 {[%clk 0:02:55.2]} 7... c5 {[%clk 0:02:52.2]} 8. a3 {[%clk
0:02:55]} 8... Bxc3 {[%clk 0:02:46.6]} 9. Qxc3 {[%clk 0:02:54.4]} 9... cxd4
{[%clk 0:02:46.9]} 10. Nxd4 {[%clk 0:02:53.5]} 10... O-O {[%clk 0:02:38.3]} 11.
Qh3 {[%clk 0:02:43.1]} 11... Qa5+ {[%clk 0:02:16.7]} 12. c3 {[%clk 0:02:41.9]}
12... Qb6 {[%clk 0:01:54.7]} 13. Bd3 {[%clk 0:02:40]} 13... g6 {[%clk
0:01:54.7]} 14. O-O-O {[%clk 0:02:28.9]} 14... Nd7 {[%clk 0:01:53]} 15. f4
{[%clk 0:02:27.1]} 15... Nc5 {[%clk 0:01:53.1]} 16. Nf3 {[%clk 0:02:19.3]} 16...
Na4 {[%clk 0:01:50.9]} 17. Rd2 {[%clk 0:02:18.6]} 17... Qe3 {[%clk 0:01:41]} 18.
Qh4 {[%clk 0:01:57.5]} 18... Kg7 {[%clk 0:01:23.6]} 19. Re1 {[%clk 0:01:57.1]}
19... Qc5 {[%clk 0:01:22.8]} 20. Ng5 {[%clk 0:01:27.1]} 20... h6 {[%clk
0:01:16]} 21. Nf3 {[%clk 0:01:10.4]} 21... Bd7 {[%clk 0:01:14.1]} 22. Qf6+
{[%clk 0:01:08.6]} 22... Kh7 {[%clk 0:01:07.4]} 23. h4 {[%clk 0:01:03.1]} 23...
Bb5 {[%clk 0:00:19.9]} 24. Ng5+ {[%clk 0:00:58.9]} 24... Kg8 {[%clk 0:00:09.6]}
25. Bxg6 {[%clk 0:00:58.2]} 25... hxg5 {[%clk 0:00:04.6]} 26. Bh7+ {[%clk
0:00:51.2]} 26... Kxh7 {[%clk 0:00:04.1]} 27. hxg5 {[%clk 0:00:51.8]} 27... Kg8
{[%clk 0:00:03]} 28. Rh1 {[%clk 0:00:51.2]} 1-0